Cogmind - Beta 13 @@@ ROGUE MODE // 2024.05.02 @ 01:05:38 Player: Nebula avali Result: Destroyed by H-88 Terminator with KE Penetrator Performance ------------- Evolutions (9) 4500 Regions Visited (12) 2400 Robots Destroyed (2) 10 Value Destroyed (30) 30 Prototype IDs (0) 0 Alien Tech Used (0) 0 Bonus (5085) 5085 TOTAL SCORE: 12025 Bonus ------- Pacifist 4085 Entered DSFs 1000 Cogmind --------- Core Integrity 0/1600 Matter 284/300 Energy 85/100 System Corruption 2% Temperature Cool (0) Movement Core (50) Location -1/Access Parts ------- > --- POWER (1) -------- (None) > --- PROPULSION (2) --- (None) > --- UTILITY (20) ----- (None) > --- WEAPON (2) ------- Axe > --- INVENTORY (5) ---- Hacking Suite Improved Plasma Cutter Axe Peak State ------------ > --- POWER ------------ (None) > --- PROPULSION ------- (None) > --- UTILITY ---------- Transport Network Coupler Improved System Guard > --- WEAPON ----------- Axe > --- INVENTORY -------- Improved Plasma Cutter Axe Axe Axe [Rating: 12] Favorites ----------- Power None Propulsion None Utility Transport Network Coupler Processor Transport Network Coupler Weapon Axe Slashing Weapon Axe Build | -11 -10 -9 -8 -7 -7 -6 -5 -4 -4 -3 -2 -1 ------- Run | Yrd Mat Mat Mat Fac DSF Fac Fac Fac DSF Res Res Acc Slots Evolved 18 | . . 2 2 2 . 2 2 2 . 2 2 2 Power . | . . . . . . . . . . . . . Propulsion . | . . . . . . . . . . . . . Utility 18 | . . 2 2 2 . 2 2 2 . 2 2 2 Weapon . | . . . . . . . . . . . . . Parts Attached 9 | . . . 1 1 . . 1 . 1 2 1 2 Power . | . . . . . . . . . . . . . Engine . | . . . . . . . . . . . . . Core . | . . . . . . . . . . . . . Reactor . | . . . . . . . . . . . . . Propulsion . | . . . . . . . . . . . . . Treads . | . . . . . . . . . . . . . Leg . | . . . . . . . . . . . . . Wheel . | . . . . . . . . . . . . . Hover . | . . . . . . . . . . . . . Flight . | . . . . . . . . . . . . . Utility 3 | . . . . 1 . . . . . 1 1 . Device . | . . . . . . . . . . . . . Storage . | . . . . . . . . . . . . . Processor 3 | . . . . 1 . . . . . 1 1 . Hackware . | . . . . . . . . . . . . . Protection . | . . . . . . . . . . . . . Artifact . | . . . . . . . . . . . . . Weapon 6 | . . . 1 . . . 1 . 1 1 . 2 Energy Gun . | . . . . . . . . . . . . . Energy Cannon . | . . . . . . . . . . . . . Ballistic Gun . | . . . . . . . . . . . . . Ballistic Cannon . | . . . . . . . . . . . . . Launcher . | . . . . . . . . . . . . . Special Weapon . | . . . . . . . . . . . . . Impact Weapon . | . . . . . . . . . . . . . Slashing Weapon 6 | . . . 1 . . . 1 . 1 1 . 2 Piercing Weapon . | . . . . . . . . . . . . . Special Melee Weapon . | . . . . . . . . . . . . . Unidentified Prototypes . | . . . . . . . . . . . . . Parts Lost 5 | . . . . . 1 . . . . . 1 3 Power . | . . . . . . . . . . . . . Propulsion . | . . . . . . . . . . . . . Utility 3 | . . . . . 1 . . . . . 1 1 Weapon 2 | . . . . . . . . . . . . 2 Highest Loss Streak 2 | . . . . . 1 . . . . . 1 2 To Critical Strikes . | . . . . . . . . . . . . . Average Slot Usage (%) 4 | . . . 1 7 3 . 2 . 1 6 9 6 Processor 1 | . . . . 7 3 . . . . 2 5 2 Slashing Weapon 2 | . . . 1 . . . 2 . 1 2 4 4 Naked Turns 247 | . 17 46 41 7 7 8 30 26 21 42 . 2 Heaviest Build 3 | . . . 3 . . . 3 . 3 3 3 3 Greatest Support 3 | 3 3 3 3 3 3 3 3 3 3 3 3 3 Greatest Overweight (x) . | . . . . . . . . . . . . . Average Overweight (x) . | . . . . . . . . . . . . . Largest Inventory Capacity 5 | 5 5 5 5 5 5 5 5 5 5 5 5 5 Average Capacity 5 | 5 5 5 5 5 5 5 5 5 5 5 5 5 Most Carried 5 | . . 4 4 4 4 4 4 4 4 5 5 5 Average Carried 3 | . . 2 3 4 4 4 3 4 3 3 4 4 Final Capacity 5 | 5 5 5 5 5 5 5 5 5 5 5 5 5 Final Carried 5 | . . 4 4 4 4 4 4 4 4 5 5 3 Class Distribution -------------------- 100% | Mutant Dominant Class ---------------- Mutant | -10/Materials Mutant | -9/Materials Mutant | -8/Materials Mutant | -7/Factory Mutant | -7/DSF Mutant | -6/Factory Mutant | -5/Factory Mutant | -4/Factory Mutant | -4/DSF Mutant | -3/Research Mutant | -2/Research Mutant | -1/Access Resources | -11 -10 -9 -8 -7 -7 -6 -5 -4 -4 -3 -2 -1 ----------- Run | Yrd Mat Mat Mat Fac DSF Fac Fac Fac DSF Res Res Acc Matter Collected 241 | 189 . . . . . . . . . 52 . . Remotely . | . . . . . . . . . . . . . Salvage Created 204 | . . . . . . . . . . 204 . . Parts 7 | . . . . . . . . . . 7 . . Haulers Intercepted 2 | . . . . . . . . . . 2 . . Recyclers Shooed . | . . . . . . . . . . . . . Parts Field Recycled . | . . . . . . . . . . . . . Retrieved Matter . | . . . . . . . . . . . . . Parts Self-Destructed . | . . . . . . . . . . . . . Prevented . | . . . . . . . . . . . . . Kills | -11 -10 -9 -8 -7 -7 -6 -5 -4 -4 -3 -2 -1 ------- Run | Yrd Mat Mat Mat Fac DSF Fac Fac Fac DSF Res Res Acc Combat Hostiles Destroyed . | . . . . . . . . . . . . . Classes Destroyed 1 | . . . . . . . . . . 1 . . Hauler 2 | . . . . . . . . . . 2 . . Best Kill Streak 2 | . . . . . . . . . . 2 . . Combat Bots Only . | . . . . . . . . . . . . . Max Kills in Single Turn 1 | . . . . . . . . . . 1 . . Gunslinging . | . . . . . . . . . . . . . Exploded . | . . . . . . . . . . . . . Melee . | . . . . . . . . . . . . . Uniques/NPCs Destroyed . | . . . . . . . . . . . . . Combat | -11 -10 -9 -8 -7 -7 -6 -5 -4 -4 -3 -2 -1 -------- Run | Yrd Mat Mat Mat Fac DSF Fac Fac Fac DSF Res Res Acc Hostile Shots Fired 157 | . . 11 6 . 1 . 14 . 14 8 6 97 Missed 53 | . . 4 2 . . . 4 . 2 5 4 32 Damage Taken 2837 | . . 108 185 . 61 . 198 . 393 82 58 1752 Core 2643 | . . 108 185 . 61 . 178 . 393 82 29 1607 Absorbed by Shields . | . . . . . . . . . . . . . Core Remaining (%) 86 | 100 100 73 66 . 91 100 82 . 65 93 98 . Volleys Fired . | . . . . . . . . . . . . . Largest . | . . . . . . . . . . . . . Hottest . | . . . . . . . . . . . . . Shots Fired . | . . . . . . . . . . . . . Gun . | . . . . . . . . . . . . . Cannon . | . . . . . . . . . . . . . Launcher . | . . . . . . . . . . . . . Special . | . . . . . . . . . . . . . Kinetic . | . . . . . . . . . . . . . Thermal . | . . . . . . . . . . . . . Explosive . | . . . . . . . . . . . . . Electromagnetic . | . . . . . . . . . . . . . Robot Hit Streak . | . . . . . . . . . . . . . Robot Miss Streak . | . . . . . . . . . . . . . Penetration Max . | . . . . . . . . . . . . . Secondary Targets . | . . . . . . . . . . . . . Shots Hit Robots 4 | . . . . . . . . . . 4 . . Core Hits 2 | . . . . . . . . . . 2 . . Critical Kills . | . . . . . . . . . . . . . Critical Parts Destroyed . | . . . . . . . . . . . . . Critical Strikes . | . . . . . . . . . . . . . Melee Attacks 26 | . . . 2 . . . 4 . 2 8 . 10 Impact . | . . . . . . . . . . . . . Slashing 26 | . . . 2 . . . 4 . 2 8 . 10 Piercing . | . . . . . . . . . . . . . Sneak Attacks 2 | . . . . . . . . . . 2 . . Combat Hostiles . | . . . . . . . . . . . . . Follow-up Attacks . | . . . . . . . . . . . . . Damage Inflicted 259 | . . . 15 . . . . . . 239 . 5 Guns . | . . . . . . . . . . . . . Cannons . | . . . . . . . . . . . . . Explosions . | . . . . . . . . . . . . . Melee 234 | . . . . . . . . . . 234 . . Ramming 25 | . . . 15 . . . . . . 5 . 5 Kinetic . | . . . . . . . . . . . . . Thermal . | . . . . . . . . . . . . . Explosive . | . . . . . . . . . . . . . Electromagnetic . | . . . . . . . . . . . . . Impact . | . . . . . . . . . . . . . Slashing 234 | . . . . . . . . . . 234 . . Piercing . | . . . . . . . . . . . . . Highest Corruption 3 | . . . . . . . 3 . . . . 2 Average Corruption 1 | . . . . . . . 2 . . . . 1 Corruption Purged . | . . . . . . . . . . . . . Corruption Blocked . | . . . . . . . . . . . . . Effects 2 | . . . . . . . 1 . . . . 1 Matter Fused 1 | . . . . . . . . . . . . 1 Data Loss (minor) 1 | . . . . . . . 1 . . . . . Overload Shots . | . . . . . . . . . . . . . Overflow Damage 60 | . . . . . . . . . . 60 . . Projectiles . | . . . . . . . . . . . . . Explosions . | . . . . . . . . . . . . . Melee 60 | . . . . . . . . . . 60 . . Knockbacks . | . . . . . . . . . . . . . Impact . | . . . . . . . . . . . . . Kinetic . | . . . . . . . . . . . . . Secondary . | . . . . . . . . . . . . . Self-Inflicted Damage 11 | . . . 7 . . . . . . 2 . 2 Shots . | . . . . . . . . . . . . . Rammed 5 | . . . 2 . . . . . . 2 . 1 Targets Rammed 5 | . . . 2 . . . . . . 2 . 1 Kicked . | . . . . . . . . . . . . . Crushed . | . . . . . . . . . . . . . Highest Temperature . | . . . . . . . . . . . . . Average Temperature . | . . . . . . . . . . . . . Received Heat Transfer 138 | . . 27 . . . . . . 48 18 9 36 Siege Activations . | . . . . . . . . . . . . . Robots Corrupted . | . . . . . . . . . . . . . Combat Hostiles . | . . . . . . . . . . . . . Parts Fried . | . . . . . . . . . . . . . Impact Corruptions . | . . . . . . . . . . . . . Robots Melted . | . . . . . . . . . . . . . Combat Hostiles . | . . . . . . . . . . . . . Parts Melted . | . . . . . . . . . . . . . Heat Transferred . | . . . . . . . . . . . . . Parts Sabotaged . | . . . . . . . . . . . . . Parts Stolen . | . . . . . . . . . . . . . Parts Stripped . | . . . . . . . . . . . . . Power Chain Reactions . | . . . . . . . . . . . . . Alert | -11 -10 -9 -8 -7 -7 -6 -5 -4 -4 -3 -2 -1 ------- Run | Yrd Mat Mat Mat Fac DSF Fac Fac Fac DSF Res Res Acc Peak Influence 91 | . 15 35 91 41 32 11 42 20 19 47 41 49 Initial 41 | . . 5 14 41 32 11 4 20 17 10 26 18 Average 26 | . . 13 48 41 27 11 29 20 18 24 34 26 Maximum Alert Level . | . . . . . . . . . . . . . Low Security (%) 100 | 100 100 100 100 100 100 100 100 100 100 100 100 100 Level 1 . | . . . . . . . . . . . . . Level 2 . | . . . . . . . . . . . . . Level 3 . | . . . . . . . . . . . . . Level 4 . | . . . . . . . . . . . . . Level 5 . | . . . . . . . . . . . . . High Security . | . . . . . . . . . . . . . Max Security . | . . . . . . . . . . . . . Squads Dispatched 3 | . . . . 1 . . . . . 1 . 1 Investigation 1 | . . . . 1 . . . . . . . . Extermination . | . . . . . . . . . . . . . Reinforcement 2 | . . . . . . . . . . 1 . 1 Assault . | . . . . . . . . . . . . . Garrison . | . . . . . . . . . . . . . Intercept . | . . . . . . . . . . . . . Searches Triggered . | . . . . . . . . . . . . . Construction Impeded 1 | . . . . . . . . . . 1 . . Haulers Reinforced . | . . . . . . . . . . . . . Active Scanning Responses . | . . . . . . . . . . . . . Cargo Convoy Interrupts . | . . . . . . . . . . . . . Stealth | -11 -10 -9 -8 -7 -7 -6 -5 -4 -4 -3 -2 -1 --------- Run | Yrd Mat Mat Mat Fac DSF Fac Fac Fac DSF Res Res Acc Distress Signals 3 | . . . . . . . 1 . . 1 . 1 Communications Jammed . | . . . . . . . . . . . . . Distress Signals . | . . . . . . . . . . . . . Times Spotted 34 | . 1 4 6 . 1 . 2 . 2 2 1 15 Peak Tracking Total 14 | . 1 5 6 . 1 . 2 . 1 2 5 14 Tactical Retreats 2 | . . . 1 . . . . . . . . 1 Traps | -11 -10 -9 -8 -7 -7 -6 -5 -4 -4 -3 -2 -1 ------- Run | Yrd Mat Mat Mat Fac DSF Fac Fac Fac DSF Res Res Acc Traps Triggered 2 | . . . . 1 . . . . . 1 . . Indirectly . | . . . . . . . . . . . . . Trap Hack Attempts . | . . . . . . . . . . . . . Triggered . | . . . . . . . . . . . . . Disarmed . | . . . . . . . . . . . . . Reprogrammed . | . . . . . . . . . . . . . Reused . | . . . . . . . . . . . . . Traps Extracted . | . . . . . . . . . . . . . Installed . | . . . . . . . . . . . . . Triggered . | . . . . . . . . . . . . . Machines | -11 -10 -9 -8 -7 -7 -6 -5 -4 -4 -3 -2 -1 ---------- Run | Yrd Mat Mat Mat Fac DSF Fac Fac Fac DSF Res Res Acc Machines Disabled . | . . . . . . . . . . . . . Max in Single Turn . | . . . . . . . . . . . . . Machines Repaired . | . . . . . . . . . . . . . Machines Dismantled . | . . . . . . . . . . . . . Machines Sabotaged . | . . . . . . . . . . . . . Overloaded Fab Kills . | . . . . . . . . . . . . . Hacking | -11 -10 -9 -8 -7 -7 -6 -5 -4 -4 -3 -2 -1 --------- Run | Yrd Mat Mat Mat Fac DSF Fac Fac Fac DSF Res Res Acc Machines Accessed 2 | . . . . 1 . . . 1 . . . . Terminals 2 | . . . . 1 . . . 1 . . . . Fabricators . | . . . . . . . . . . . . . Repair Stations . | . . . . . . . . . . . . . Recycling Units . | . . . . . . . . . . . . . Scanalyzers . | . . . . . . . . . . . . . Garrison Access . | . . . . . . . . . . . . . Total Hacks 3 | . . . . 1 . . . 2 . . . . Successful 2 | . . . . 1 . . . 1 . . . . Failed 1 | . . . . . . . . 1 . . . . Catastrophic . | . . . . . . . . . . . . . Database Lockouts . | . . . . . . . . . . . . . Manual 2 | . . . 2 . . . . . . . . . Terminals 3 | . . . . 1 . . . 2 . . . . Fabricators . | . . . . . . . . . . . . . Repair Stations . | . . . . . . . . . . . . . Recycling Units . | . . . . . . . . . . . . . Scanalyzers . | . . . . . . . . . . . . . Garrison Access . | . . . . . . . . . . . . . Terminal Hacks 2 | . . . . 1 . . . 1 . . . . Open DSF 2 | . . . . 1 . . . 1 . . . . Fabricator Hacks . | . . . . . . . . . . . . . Repair Station Hacks . | . . . . . . . . . . . . . Recycling Unit Hacks . | . . . . . . . . . . . . . Scanalyzer . | . . . . . . . . . . . . . Garrison Access Hacks . | . . . . . . . . . . . . . Unauthorized Hacks . | . . . . . . . . . . . . . Terminals . | . . . . . . . . . . . . . Fabricators . | . . . . . . . . . . . . . Repair Stations . | . . . . . . . . . . . . . Recycling Units . | . . . . . . . . . . . . . Scanalyzers . | . . . . . . . . . . . . . Garrison Access . | . . . . . . . . . . . . . Data Cores Recovered . | . . . . . . . . . . . . . Used . | . . . . . . . . . . . . . Hacking Detections 3 | . . . 1 1 . . . 1 . . . . Full Trace Events . | . . . . . . . . . . . . . Feedback Events . | . . . . . . . . . . . . . Feedback Blocked . | . . . . . . . . . . . . . Robot Schematics Acquired . | . . . . . . . . . . . . . Robots Built . | . . . . . . . . . . . . . Authchips . | . . . . . . . . . . . . . Time . | . . . . . . . . . . . . . Total Robot Build Rating . | . . . . . . . . . . . . . Part Schematics Acquired . | . . . . . . . . . . . . . Parts Built . | . . . . . . . . . . . . . Authchips . | . . . . . . . . . . . . . Time . | . . . . . . . . . . . . . Total Part Build Rating . | . . . . . . . . . . . . . Parts Repaired . | . . . . . . . . . . . . . Time . | . . . . . . . . . . . . . Parts Recycled . | . . . . . . . . . . . . . Recycled Matter . | . . . . . . . . . . . . . Retrieved Matter . | . . . . . . . . . . . . . Retrieved Components . | . . . . . . . . . . . . . Parts Scanalyzed . | . . . . . . . . . . . . . Part Schematics Acquired . | . . . . . . . . . . . . . Parts Damaged . | . . . . . . . . . . . . . Bothacking | -11 -10 -9 -8 -7 -7 -6 -5 -4 -4 -3 -2 -1 ------------ Run | Yrd Mat Mat Mat Fac DSF Fac Fac Fac DSF Res Res Acc Used RIF Installer . | . . . . . . . . . . . . . Robots Hacked . | . . . . . . . . . . . . . Non-combat . | . . . . . . . . . . . . . Combat . | . . . . . . . . . . . . . Robot Hacks Applied . | . . . . . . . . . . . . . Relay Couplers Released . | . . . . . . . . . . . . . Fabnet Peak Effective % . | . . . . . . . . . . . . . Robots Rewired . | . . . . . . . . . . . . . Allies Hacked . | . . . . . . . . . . . . . Hacks Repelled . | . . . . . . . . . . . . . Allies | -11 -10 -9 -8 -7 -7 -6 -5 -4 -4 -3 -2 -1 -------- Run | Yrd Mat Mat Mat Fac DSF Fac Fac Fac DSF Res Res Acc Total Allies . | . . . . . . . . . . . . . Largest Group . | . . . . . . . . . . . . . Highest-Rated Group . | . . . . . . . . . . . . . Highest-Rated Ally . | . . . . . . . . . . . . . Total Orders . | . . . . . . . . . . . . . Ally Attacks . | . . . . . . . . . . . . . Total Damage . | . . . . . . . . . . . . . Kills . | . . . . . . . . . . . . . Allies Corrupted . | . . . . . . . . . . . . . Allies Melted . | . . . . . . . . . . . . . Intel | -11 -10 -9 -8 -7 -7 -6 -5 -4 -4 -3 -2 -1 ------- Run | Yrd Mat Mat Mat Fac DSF Fac Fac Fac DSF Res Res Acc Robot Analysis Total . | . . . . . . . . . . . . . Derelict Logs Recovered . | . . . . . . . . . . . . . Drone Launches . | . . . . . . . . . . . . . Drone Recoveries . | . . . . . . . . . . . . . Exploration | -11 -10 -9 -8 -7 -7 -6 -5 -4 -4 -3 -2 -1 ------------- Run | Yrd Mat Mat Mat Fac DSF Fac Fac Fac DSF Res Res Acc Turns Passed 592 | 10 17 46 48 24 15 8 74 26 33 148 45 98 Spaces Moved 990 | 20 34 83 77 44 30 16 122 52 52 239 86 135 Core 990 | 20 34 83 77 44 30 16 122 52 52 239 86 135 Treads . | . . . . . . . . . . . . . Legs . | . . . . . . . . . . . . . Wheels . | . . . . . . . . . . . . . Hover . | . . . . . . . . . . . . . Flight . | . . . . . . . . . . . . . Fastest Speed 50 | 50 50 50 50 50 50 50 50 50 50 50 50 50 Average Speed 50 | 50 50 50 50 50 50 50 50 50 50 50 50 50 Slowest Speed 50 | 50 50 50 50 50 50 50 50 50 50 50 50 50 Overloaded Moves . | . . . . . . . . . . . . . Propulsion Burnouts . | . . . . . . . . . . . . . Robots Hopped . | . . . . . . . . . . . . . Cave-ins Triggered . | . . . . . . . . . . . . . Exploration Rate (%) 15 | 3 15 13 15 2 46 1 5 2 80 9 2 7 Regions Visited 12 Branch Regions . Pre-discovered Areas . | . . . . . . . . . . . . . Known Exits Taken 2 | . . . . 1 . . . 1 . . . . Unknown Exits Taken 8 | 1 1 1 1 . . 1 1 . . 1 1 . Scrap Searched . | . . . . . . . . . . . . . Spaces Dug 20 | . . . 2 . . . 4 . 1 4 . 9 Terrain Destroyed 20 | . . . 2 . . . 4 . 1 4 . 9 Melee 20 | . . . 2 . . . 4 . 1 4 . 9 Projectile . | . . . . . . . . . . . . . AOE . | . . . . . . . . . . . . . Terrain Rammed . | . . . . . . . . . . . . . Walls Destroyed . | . . . . . . . . . . . . . Machines Disabled . | . . . . . . . . . . . . . Actions | -11 -10 -9 -8 -7 -7 -6 -5 -4 -4 -3 -2 -1 --------- Run | Yrd Mat Mat Mat Fac DSF Fac Fac Fac DSF Res Res Acc Total 1028 | 19 33 86 82 44 29 15 127 51 55 252 87 148 Wait . | . . . . . . . . . . . . . Move 978 | 19 33 82 76 43 29 15 121 51 51 238 85 135 Hop . | . . . . . . . . . . . . . Pick Up 7 | . . 4 . . . . . . . 2 1 . Fast Attach 2 | . . . . 1 . . . . . 1 . . Attach 7 | . . . 1 . . . 1 . 1 1 1 2 Detach 3 | . . . 1 . . . 1 . 1 . . . Swap . | . . . . . . . . . . . . . Drop . | . . . . . . . . . . . . . Fire . | . . . . . . . . . . . . . Melee 26 | . . . 2 . . . 4 . 2 8 . 10 Ram 5 | . . . 2 . . . . . . 2 . 1 Kick . | . . . . . . . . . . . . . Crush . | . . . . . . . . . . . . . Escape Stasis . | . . . . . . . . . . . . . Rewire . | . . . . . . . . . . . . . Trap . | . . . . . . . . . . . . . Miscellaneous . | . . . . . . . . . . . . . Route ------- -11/Scrapyard -10/Materials -9/Materials -8/Materials -7/Factory -7/DSF -6/Factory -5/Factory -4/Factory -4/DSF -3/Research -2/Research -1/Access History --------- Turn | Location | Event 3 | -11/Scrapyard | Discovered new exit (range 16) 11 | -11/Scrapyard | Entered Materials 27 | -10/Materials | Discovered new exit (range 3) 28 | -10/Materials | Entered another Materials area 28 | -9/Materials | Evolved 2 slots: Utility x2 70 | -9/Materials | Discovered new exit (range 8) 74 | -9/Materials | Entered another Materials area 74 | -8/Materials | Evolved 2 slots: Utility x2 113 | -8/Materials | Discovered new exit (range 15) 122 | -8/Materials | Entered Factory 122 | -7/Factory | Evolved 2 slots: Utility x2 146 | -7/Factory | Identified exit to DSF 146 | -7/Factory | Entered DSF 151 | -7/DSF | Discovered new exit (range 19) 161 | -7/DSF | Entered Factory 161 | -6/Factory | Evolved 2 slots: Utility x2 164 | -6/Factory | Discovered new exit (range 10) 169 | -6/Factory | Entered another Factory area 169 | -5/Factory | Evolved 2 slots: Utility x2 240 | -5/Factory | Discovered new exit (range 5) 243 | -5/Factory | Entered another Factory area 243 | -4/Factory | Evolved 2 slots: Utility x2 269 | -4/Factory | Identified exit to DSF 269 | -4/Factory | Entered DSF 293 | -4/DSF | Additional patrols routed to DSF 296 | -4/DSF | Discovered new exit (range 14) 302 | -4/DSF | Entered Research 302 | -3/Research | Evolved 2 slots: Utility x2 304 | -3/Research | Build established: Mutant 448 | -3/Research | Discovered new exit (range 5) 450 | -3/Research | Entered another Research area 450 | -2/Research | Evolved 2 slots: Utility x2 488 | -2/Research | Discovered new exit (range 15) 495 | -2/Research | Entered Access 495 | -1/Access | Evolved 2 slots: Utility x2 554 | -1/Access | Core integrity fell below 50% 583 | -1/Access | Core integrity fell below 20% 593 | -1/Access | Destroyed by H-88 Terminator with KE Penetrator Last Messages --------------- PARAMETERS=UTILITY+2 LOCATION=UNKNOWN GOAL=ESCAPE 00523_ U-05 Engineer builds a Wall. 00541_ H-81 Overseer calls for reinforcements. 00541_ ALERT: Suspicious intruders detected, dispatching Cutter reinforcements to area. 00541_ Penetrated by Slug. 00541_ Knocked back. 00550_ Slammed into W-44 Eye. 00550_ Destabilizing: System corrupted (+1). 00554_ Axe destroyed. 00557_ Imp. System Guard destroyed. 00587_ P-80 Master resets G-73 Enforcer, system corruption cleaned. 00590_ Penetrated by Slug. 00590_ Axe destroyed. 00590_ Slug penetrates Wall. 00592_ System corrupted: Matter fused (-6). 00592_ Slug penetrates A-15 Conveyor. 00592_ Penetrated by Slug. Map ----- +----------------------------------------------------+ | ?????????????????????????????????????????????????? | | ?????????????????????????????????????????????????? | | ?????????????????????????????????????????????????? | | ?????????????????????????????????????????????????? | | ?????????????????????????????????????????????????? | | ?????????????????????????????????????????????????? | | ?????????????????????????????????????????????????? | | ?????????????????????????????????????????????????? | | ?????????????????????????????????????????????????? | | ?????????????????????????????????????????????????? | | ????????????????????????? ?????????????????????? | | ????????????????????????? ???????????????????? | | ????????????????????????? ????????????????? | | ????????????????????????? ????????????????? | | ????????????????????????#hh ????????????????? | | ????????????????????????# u ???????????????? | | ????????????????????????# ????????????????? | | ????????????????????????# ????????????????? | | ????????????????????????# ????????????????? | | ????????????????????????# ?? ? ?????????? | | ????????????????????????# ??????????? | | ????????????????????????# ""Y"" ?????????? | | ????????????????????????# A """"" ?????????? | | ????????????????????????# ????????? | | ????????????????????????# ????????? | | ????????????????????????#@ s ????????? | | ????????????????????######s#;#####???????????????? | | ????????????????????# s #???????????????? | | ????????????????????# #???????????????? | | ????????????????????# #???????????????? | | ????????????????????# #???????????????? | | ????????????????????# ] #???????????????? | | ????????????????????# #???????????????? | | ????????????????????# #???????????????? | | ????????????????????# !! #???????????????? | | ????????????????????# !! #???????????????? | | ????????????????????# #???????????????? | | ????????????????????# #???????????????? | | ????????????????????# #???????????????? | | ????????????????????#########/####???????????????? | | ????????????????????????????# #??????????????????? | | ???????????????????????????##"###########????????? | | ???????????????????????????# #????????? | | ???????????????????????????# #????????? | | ???????????????????????????# #????????? | | ???????????????????????????# #????????? | | ???????????????????????????# "" #????????? | | ???????????????????????????# """ #????????? | | ???????????????????????????# "F #????????? | | ???????????????????????????# """ #????????? | +----------------------------------------------------+ Best States ------------- Heat Dissipation 52 Energy Generation 5 Energy Capacity 100 Matter Stores 300 Matter Capacity 300 Sight Range 20 Terrain Scan Density 10 Corruption Containment 12 Evasion (%) 50 Item Schematics ----------------- None Robot Schematics ------------------ None Fabricated ------------ Nothing Alien Tech Used ----------------- None Achievements -------------- None Challenges ------------ None Game ------ Seed soup Manual? 1 Play Time 00:10:46 Cumulative 64.0 hours Start 2024.05.02 @ 00:56:23 End 2024.05.02 @ 01:05:38 Sessions 1 Manual Loads 0 Difficulty Rogue Special Mode None Game No. 95 Rogue 94 Adventurer 1 Explorer 0 Win Type - Total 2 Types 2/0/0/0/0/0/0/0/0 Lore% 28 Gallery% 56 Achievement% 46 Wizard Run 0 Options --------- Layout 0 ASCII 0 Keyboard 0 Movement Numpad Keybinds 0 Fullscreen 1 Font 18/SmallcapsGlow Map View 76x50 Zoom Use 0% Tactical HUD 1 Map Filters NONE Filters NONE Steam 1 RUN: 5eb021fd-741d-4313-9296-53fb7b5efc0d